[Event "FIDE Grand Swiss 2023"]
[Site "Villa Marina, Douglas, Isle of Man"]
[Date "2023.10.28"]
[Round "4.46"]
[White "Idani, Pouya"]
[Black "Mishra, Abhimanyu"]
[Result "1/2-1/2"]
[WhiteElo "2633"]
[BlackElo "2592"]
[EventDate "2023.10.25"]
[ECO "C02"]
[PlyCount "70"]
[BlackFideId "30920019"]
[TimeControl "40/100 + 20/50 + 15 + 30s/move"]
[WhiteFideId "12510130"]

1.e4 {[%clk 01:40:59] [%emt 00:00:02]} 1...e6 {[%clk 01:40:54] [%emt 00:00:06]} 
2.d4 {[%clk 01:41:18] [%emt 00:00:11]} 2...d5 {[%clk 01:41:14] [%emt 00:00:10]} 
3.e5 {[%clk 01:41:44] [%emt 00:00:03]} 3...c5 {[%clk 01:41:26] [%emt 00:00:19]} 
4.c3 {[%clk 01:42:10] [%emt 00:00:04]} 4...Nc6 {[%clk 01:41:32] [%emt 00:00:24]} 
5.Nf3 {[%clk 01:42:35] [%emt 00:00:05]} 5...Qb6 {[%clk 01:41:40] [%emt
00:00:22]} 6.a3 {[%clk 01:42:03] [%emt 00:01:02]} 6...c4 {[%clk 01:41:49] [%emt
00:00:21]} 7.Nbd2 {[%clk 01:42:01] [%emt 00:00:32]} 7...Na5 {[%clk 01:41:51]
[%emt 00:00:28]} 8.Rb1 {[%clk 01:39:46] [%emt 00:02:44]} 8...Bd7 {[%clk
01:42:11] [%emt 00:00:11]} 9.h4 {[%clk 01:38:54] [%emt 00:01:21]} 9...O-O-O 
{[%clk 01:42:06] [%emt 00:00:35]} 10.Be2 {[%clk 01:36:45] [%emt 00:02:39]} 
10...Kb8 {[%clk 01:29:08] [%emt 00:13:29]} 11.h5 {[%clk 01:34:03] [%emt
00:03:12]} 11...h6 {[%clk 01:27:04] [%emt 00:02:34]} 12.Qc2 {[%clk 01:25:53]
[%emt 00:08:40]} 12...Ne7 {[%clk 01:23:42] [%emt 00:03:52]} 13.Nf1 {[%clk
01:24:50] [%emt 00:01:32]} 13...Nc8 {[%clk 01:17:34] [%emt 00:06:38]} 14.Bf4 
{[%clk 01:23:16] [%emt 00:02:04]} 14...Qc7 {[%clk 01:14:42] [%emt 00:03:23]} 
15.Ne3 {[%clk 01:17:44] [%emt 00:06:01]} 15...Nb6 {[%clk 01:13:07] [%emt
00:02:06]} 16.Kf1 {[%clk 01:16:16] [%emt 00:01:57]} 16...Be7 {[%clk 01:04:21]
[%emt 00:09:16]} 17.Kg1 {[%clk 01:11:44] [%emt 00:05:02]} 17...Ba4 {[%clk
00:58:28] [%emt 00:06:24]} 18.Qd2 {[%clk 01:11:55] [%emt 00:00:18]} 18...Rdg8 
{[%clk 00:57:17] [%emt 00:01:42]} 19.Bg3 {[%clk 01:10:33] [%emt 00:01:52]} 
19...a6 {[%clk 00:54:29] [%emt 00:03:19]} 20.Nh2 {[%clk 01:03:56] [%emt
00:07:06]} 20...Ka7 {[%clk 00:48:45] [%emt 00:06:14]} 21.Nhg4 {[%clk 01:00:36]
[%emt 00:03:50]} 21...Qd7 {[%clk 00:43:22] [%emt 00:05:53]} 22.Bh4 {[%clk
00:58:32] [%emt 00:02:33]} 22...Bxh4 {[%clk 00:39:40] [%emt 00:04:13]} 23.Rxh4 
{[%clk 00:58:29] [%emt 00:00:32]} 23...Qe7 {[%clk 00:38:25] [%emt 00:01:45]} 
24.g3 {[%clk 00:58:05] [%emt 00:00:54]} 24...Nb3 {[%clk 00:33:21] [%emt
00:05:34]} 25.Qe1 {[%clk 00:58:17] [%emt 00:00:19]} 25...f5 {[%clk 00:32:10]
[%emt 00:01:41]} 26.exf6 {[%clk 00:48:05] [%emt 00:10:42]} 26...gxf6 {[%clk
00:32:33] [%emt 00:00:07]} 27.Bd1 {[%clk 00:48:31] [%emt 00:00:04]} 27...Rg7 
{[%clk 00:27:57] [%emt 00:05:05]} 28.Ng2 {[%clk 00:48:21] [%emt 00:00:41]} 
28...Nd7 {[%clk 00:22:22] [%emt 00:06:05]} 29.Qe3 {[%clk 00:40:05] [%emt
00:08:46]} 29...f5 {[%clk 00:16:44] [%emt 00:06:08]} 30.Bxb3 {[%clk 00:35:43]
[%emt 00:04:51]} 30...Bxb3 {[%clk 00:16:48] [%emt 00:00:27]} 31.Ne5 {[%clk
00:36:06] [%emt 00:00:07]} 31...Nxe5 {[%clk 00:16:23] [%emt 00:00:55]} 32.Qxe5 
{[%clk 00:29:30] [%emt 00:07:06]} 32...Bc2 {[%clk 00:16:16] [%emt 00:00:37]} 
33.Re1 {[%clk 00:29:45] [%emt 00:00:15]} 33...Be4 {[%clk 00:16:03] [%emt
00:00:42]} 34.Kh2 {[%clk 00:26:54] [%emt 00:03:21]} 34...Bxg2 {[%clk 00:14:40]
[%emt 00:01:54]} 35.Kxg2 {[%clk 00:27:18] [%emt 00:00:05]} 35...Re8 {[%clk
00:12:47] [%emt 00:02:24]} 1/2-1/2

[Event "FIDE Grand Swiss 2023"]
[Site "Villa Marina, Douglas, Isle of Man"]
[Date "2023.10.28"]
[Round "4.47"]
[White "Samunenkov, Ihor"]
[Black "Kollars, Dmitrij"]
[Result "0-1"]
[WhiteElo "2531"]
[BlackElo "2633"]
[EventDate "2023.10.25"]
[ECO "D35"]
[PlyCount "104"]
[BlackFideId "12909572"]
[TimeControl "40/100 + 20/50 + 15 + 30s/move"]
[WhiteFideId "14187086"]

1.d4 {[%clk 01:40:53] [%emt 00:00:06]} 1...d5 {[%clk 01:40:48] [%emt 00:00:12]} 
2.c4 {[%clk 01:40:03] [%emt 00:01:20]} 2...e6 {[%clk 01:41:11] [%emt 00:00:07]} 
3.Nc3 {[%clk 01:39:04] [%emt 00:01:30]} 3...Nf6 {[%clk 01:41:20] [%emt
00:00:21]} 4.cxd5 {[%clk 01:39:08] [%emt 00:00:26]} 4...exd5 {[%clk 01:41:45]
[%emt 00:00:05]} 5.Bg5 {[%clk 01:39:14] [%emt 00:00:23]} 5...Bb4 {[%clk
01:41:53] [%emt 00:00:23]} 6.Qb3 {[%clk 01:38:59] [%emt 00:00:44]} 6...c5 
{[%clk 01:41:37] [%emt 00:00:46]} 7.dxc5 {[%clk 01:38:59] [%emt 00:00:31]} 
7...Qa5 {[%clk 01:41:04] [%emt 00:01:03]} 8.Bxf6 {[%clk 01:20:26] [%emt
00:19:04]} 8...gxf6 {[%clk 01:41:29] [%emt 00:00:04]} 9.e3 {[%clk 01:20:01]
[%emt 00:00:55]} 9...Be6 {[%clk 01:41:05] [%emt 00:00:54]} 10.a3 {[%clk
01:15:56] [%emt 00:04:37]} 10...Bxc3+ {[%clk 01:17:00] [%emt 00:24:34]} 11.bxc3 
{[%clk 01:15:52] [%emt 00:00:33]} 11...Qxc5 {[%clk 01:08:58] [%emt 00:08:32]} 
12.Bb5+ {[%clk 01:11:24] [%emt 00:04:59]} 12...Nc6 {[%clk 01:06:53] [%emt
00:02:35]} 13.Ne2 {[%clk 01:02:57] [%emt 00:08:57]} 13...O-O {[%clk 01:00:36]
[%emt 00:06:47]} 14.O-O {[%clk 01:01:36] [%emt 00:01:51]} 14...Rfc8 {[%clk
00:57:25] [%emt 00:03:42]} 15.Nf4 {[%clk 00:53:37] [%emt 00:08:29]} 15...Ne5 
{[%clk 00:55:36] [%emt 00:02:19]} 16.Rac1 {[%clk 00:50:58] [%emt 00:03:09]} 
16...Qb6 {[%clk 00:49:36] [%emt 00:06:29]} 17.Qa4 {[%clk 00:28:00] [%emt
00:23:29]} 17...Rc5 {[%clk 00:47:35] [%emt 00:02:31]} 18.Rb1 {[%clk 00:22:47]
[%emt 00:05:43]} 18...Qd6 {[%clk 00:45:32] [%emt 00:02:32]} 19.Be2 {[%clk
00:21:02] [%emt 00:02:16]} 19...b6 {[%clk 00:42:21] [%emt 00:03:42]} 20.Qd4 
{[%clk 00:20:18] [%emt 00:01:14]} 20...Rac8 {[%clk 00:31:58] [%emt 00:10:53]} 
21.e4 {[%clk 00:16:00] [%emt 00:04:47]} 21...Nc6 {[%clk 00:29:23] [%emt
00:03:05]} 22.Qd2 {[%clk 00:12:43] [%emt 00:03:48]} 22...d4 {[%clk 00:24:48]
[%emt 00:05:06]} 23.Nh5 {[%clk 00:11:27] [%emt 00:01:45]} 23...d3 {[%clk
00:20:48] [%emt 00:04:29]} 24.Qh6 {[%clk 00:10:23] [%emt 00:01:33]} 24...Rxh5 
{[%clk 00:21:09] [%emt 00:00:08]} 25.Bxh5 {[%clk 00:10:45] [%emt 00:00:08]} 
25...Qc5 {[%clk 00:20:01] [%emt 00:01:39]} 26.Rfd1 {[%clk 00:07:09] [%emt
00:04:07]} 26...Rd8 {[%clk 00:19:23] [%emt 00:01:08]} 27.Bf3 {[%clk 00:06:06]
[%emt 00:01:33]} 27...Qg5 {[%clk 00:19:20] [%emt 00:00:32]} 28.Qxg5+ {[%clk
00:04:10] [%emt 00:02:26]} 28...fxg5 {[%clk 00:19:49] [%emt 00:00:01]} 29.Rd2 
{[%clk 00:03:23] [%emt 00:01:17]} 29...Ne5 {[%clk 00:19:39] [%emt 00:00:39]} 
30.Be2 {[%clk 00:02:16] [%emt 00:01:38]} 30...Kg7 {[%clk 00:18:28] [%emt
00:01:41]} 31.Bf1 {[%clk 00:01:17] [%emt 00:01:28]} 31...g4 {[%clk 00:14:57]
[%emt 00:04:01]} 32.h3 {[%clk 00:01:02] [%emt 00:00:45]} 32...h5 {[%clk
00:15:21] [%emt 00:00:07]} 33.hxg4 {[%clk 00:01:01] [%emt 00:00:31]} 33...hxg4 
{[%clk 00:15:49]} 34.Rb5 {[%clk 00:00:59] [%emt 00:00:32]} 34...Kf6 {[%clk
00:15:42] [%emt 00:00:36]} 35.Kh2 {[%clk 00:01:10] [%emt 00:00:21]} 35...Rc8 
{[%clk 00:13:32] [%emt 00:02:40]} 36.Kg3 {[%clk 00:00:41] [%emt 00:00:59]} 
36...Rxc3 {[%clk 00:13:43] [%emt 00:00:20]} 37.Kf4 {[%clk 00:00:54] [%emt
00:00:17]} 37...Rc2 {[%clk 00:11:51] [%emt 00:02:22]} 38.Rd1 {[%clk 00:00:32]
[%emt 00:00:52]} 38...Rxf2+ {[%clk 00:05:57] [%emt 00:06:23]} 39.Ke3 {[%clk
00:00:58] [%emt 00:00:04]} 39...Ra2 {[%clk 00:05:27] [%emt 00:01:00]} 40.Kf4 
{[%clk 00:00:38] [%emt 00:00:50]} 40...Rf2+ {[%clk 00:04:09] [%emt 00:01:47]} 
41.Ke3 {[%clk 00:41:41] [%emt 00:09:26]} 41...g3 {[%clk 00:41:00] [%emt
00:13:40]} 42.Kd4 {[%clk 00:24:59] [%emt 00:17:12]} 42...Bg4 {[%clk 00:34:11]
[%emt 00:07:19]} 43.Rxe5 {[%clk 00:19:11] [%emt 00:06:18]} 43...Bxd1 {[%clk
00:34:24] [%emt 00:00:17]} 44.Bxd3 {[%clk 00:19:29] [%emt 00:00:12]} 44...Bg4 
{[%clk 00:23:32] [%emt 00:11:22]} 45.Re8 {[%clk 00:17:15] [%emt 00:02:44]} 
45...Rxg2 {[%clk 00:23:41] [%emt 00:00:22]} 46.Rg8 {[%clk 00:16:54] [%emt
00:00:51]} 46...Bd7 {[%clk 00:23:46] [%emt 00:00:24]} 47.e5+ {[%clk 00:15:06]
[%emt 00:02:19]} 47...Ke7 {[%clk 00:22:16] [%emt 00:01:59]} 48.Bc4 {[%clk
00:13:31] [%emt 00:02:05]} 48...Rg1 {[%clk 00:21:23] [%emt 00:01:23]} 49.Bd5 
{[%clk 00:13:26] [%emt 00:00:35]} 49...a5 {[%clk 00:18:21] [%emt 00:03:32]} 
50.Rg7 {[%clk 00:10:07] [%emt 00:03:48]} 50...Be6 {[%clk 00:18:28] [%emt
00:00:23]} 51.Bc6 {[%clk 00:10:29] [%emt 00:00:09]} 51...Kf8 {[%clk 00:17:51]
[%emt 00:01:08]} 52.Rg5 {[%clk 00:10:50] [%emt 00:00:08]} 52...Bh3 {[%clk
00:17:30] [%emt 00:00:50]} 0-1

[Event "FIDE Grand Swiss 2023"]
[Site "Villa Marina, Douglas, Isle of Man"]
[Date "2023.10.28"]
[Round "4.48"]
[White "Murzin, Volodar"]
[Black "Greenfeld, Alon"]
[Result "1-0"]
[WhiteElo "2633"]
[BlackElo "2455"]
[EventDate "2023.10.25"]
[ECO "B45"]
[PlyCount "63"]
[BlackFideId "2800039"]
[TimeControl "40/100 + 20/50 + 15 + 30s/move"]
[WhiteFideId "44155573"]

1.e4 {[%clk 01:40:56] [%emt 00:00:03]} 1...c5 {[%clk 01:38:25] [%emt 00:02:34]} 
2.Nf3 {[%clk 01:41:20] [%emt 00:00:08]} 2...e6 {[%clk 01:37:13] [%emt 00:01:42]} 
3.d4 {[%clk 01:41:26] [%emt 00:00:24]} 3...cxd4 {[%clk 01:37:30] [%emt
00:00:12]} 4.Nxd4 {[%clk 01:41:53] [%emt 00:00:03]} 4...Nc6 {[%clk 01:36:46]
[%emt 00:01:15]} 5.Nc3 {[%clk 01:42:13] [%emt 00:00:10]} 5...Nf6 {[%clk
01:36:31] [%emt 00:00:45]} 6.Ndb5 {[%clk 01:39:42] [%emt 00:03:01]} 6...Bb4 
{[%clk 01:34:50] [%emt 00:02:10]} 7.a3 {[%clk 01:36:18] [%emt 00:03:55]} 
7...Bxc3+ {[%clk 01:32:58] [%emt 00:02:21]} 8.Nxc3 {[%clk 01:36:45] [%emt
00:00:03]} 8...d5 {[%clk 01:33:00] [%emt 00:00:28]} 9.exd5 {[%clk 01:37:09]
[%emt 00:00:07]} 9...exd5 {[%clk 01:32:46] [%emt 00:00:44]} 10.Bd3 {[%clk
01:37:09] [%emt 00:00:29]} 10...O-O {[%clk 01:32:47] [%emt 00:00:28]} 11.O-O 
{[%clk 01:36:55] [%emt 00:00:45]} 11...Bg4 {[%clk 01:31:02] [%emt 00:02:15]} 
12.f3 {[%clk 01:29:23] [%emt 00:08:02]} 12...Bh5 {[%clk 01:30:26] [%emt
00:01:05]} 13.Bg5 {[%clk 01:29:37] [%emt 00:00:16]} 13...Qb6+ {[%clk 01:29:31]
[%emt 00:01:25]} 14.Kh1 {[%clk 01:30:02] [%emt 00:00:05]} 14...Ne4 {[%clk
01:29:38] [%emt 00:00:24]} 15.Nxe4 {[%clk 01:30:24] [%emt 00:00:09]} 15...dxe4 
{[%clk 01:30:01] [%emt 00:00:07]} 16.Bxe4 {[%clk 01:30:51] [%emt 00:00:02]} 
16...Qxb2 {[%clk 01:28:46] [%emt 00:01:44]} 17.Qb1 {[%clk 01:23:20] [%emt
00:08:01]} 17...Qb6 {[%clk 01:25:18] [%emt 00:03:58]} 18.Qxb6 {[%clk 01:23:38]
[%emt 00:00:12]} 18...axb6 {[%clk 01:25:41] [%emt 00:00:06]} 19.Rfb1 {[%clk
01:24:05] [%emt 00:00:04]} 19...Bg6 {[%clk 01:14:38] [%emt 00:11:32]} 20.Bxg6 
{[%clk 01:13:31] [%emt 00:11:04]} 20...hxg6 {[%clk 01:14:44] [%emt 00:00:24]} 
21.Rxb6 {[%clk 01:13:54] [%emt 00:00:08]} 21...Rfc8 {[%clk 01:00:02] [%emt
00:15:12]} 22.Rxb7 {[%clk 01:07:20] [%emt 00:07:03]} 22...Nd4 {[%clk 00:59:08]
[%emt 00:01:23]} 23.Be7 {[%clk 00:50:41] [%emt 00:17:10]} 23...Rxc2 {[%clk
00:55:53] [%emt 00:03:45]} 24.Rd7 {[%clk 00:17:48] [%emt 00:33:23]} 24...Ra4 
{[%clk 00:36:04] [%emt 00:20:19]} 25.h3 {[%clk 00:15:32] [%emt 00:02:46]} 
25...Rac4 {[%clk 00:26:52] [%emt 00:09:41]} 26.Re1 {[%clk 00:05:22] [%emt
00:10:41]} 26...Ra2 {[%clk 00:15:52] [%emt 00:11:30]} 27.Bb4 {[%clk 00:04:59]
[%emt 00:00:53]} 27...Nc6 {[%clk 00:15:52] [%emt 00:00:29]} 28.Rc7 {[%clk
00:03:29] [%emt 00:02:00]} 28...Rcc2 {[%clk 00:12:14] [%emt 00:04:07]} 29.Bd6 
{[%clk 00:03:54] [%emt 00:00:06]} 29...Nd4 {[%clk 00:11:52] [%emt 00:00:52]} 
30.Re8+ {[%clk 00:03:32] [%emt 00:00:52]} 30...Kh7 {[%clk 00:12:13] [%emt
00:00:08]} 31.Rxf7 {[%clk 00:01:48] [%emt 00:02:15]} 31...Rxg2 {[%clk 00:08:46]
[%emt 00:03:57]} 32.Be5 {[%clk 00:02:14] [%emt 00:00:04]} 1-0

[Event "FIDE Grand Swiss 2023"]
[Site "Villa Marina, Douglas, Isle of Man"]
[Date "2023.10.28"]
[Round "4.49"]
[White "Santos Latasa, Jaime"]
[Black "Lazavik, Denis"]
[Result "1/2-1/2"]
[WhiteElo "2650"]
[BlackElo "2560"]
[EventDate "2023.10.25"]
[ECO "C50"]
[PlyCount "79"]
[BlackFideId "13515110"]
[TimeControl "40/100 + 20/50 + 15 + 30s/move"]
[WhiteFideId "2293307"]

1.e4 {[%clk 01:40:56] [%emt 00:00:02]} 1...e5 {[%clk 01:40:46] [%emt 00:00:14]} 
2.Nf3 {[%clk 01:41:22] [%emt 00:00:06]} 2...Nc6 {[%clk 01:40:58] [%emt
00:00:17]} 3.Bc4 {[%clk 01:41:46] [%emt 00:00:06]} 3...Bc5 {[%clk 01:40:59]
[%emt 00:00:28]} 4.d3 {[%clk 01:42:08] [%emt 00:00:09]} 4...Nf6 {[%clk 01:41:05]
[%emt 00:00:24]} 5.O-O {[%clk 01:42:32] [%emt 00:00:07]} 5...d6 {[%clk 01:40:39]
[%emt 00:00:55]} 6.c3 {[%clk 01:42:03] [%emt 00:01:00]} 6...a6 {[%clk 01:40:25]
[%emt 00:00:43]} 7.a4 {[%clk 01:42:03] [%emt 00:00:31]} 7...h6 {[%clk 01:40:27]
[%emt 00:00:27]} 8.Re1 {[%clk 01:42:03] [%emt 00:00:30]} 8...O-O {[%clk
01:40:17] [%emt 00:00:40]} 9.Nbd2 {[%clk 01:42:11] [%emt 00:00:23]} 9...Re8 
{[%clk 01:39:16] [%emt 00:01:30]} 10.Nf1 {[%clk 01:42:04] [%emt 00:00:37]} 
10...Ba7 {[%clk 01:38:24] [%emt 00:01:22]} 11.Be3 {[%clk 01:42:06] [%emt
00:00:29]} 11...Bxe3 {[%clk 01:37:45] [%emt 00:01:07]} 12.Nxe3 {[%clk 01:41:41]
[%emt 00:00:57]} 12...Be6 {[%clk 01:37:58] [%emt 00:00:17]} 13.Bxe6 {[%clk
01:41:56] [%emt 00:00:16]} 13...Rxe6 {[%clk 01:38:19] [%emt 00:00:08]} 14.b4 
{[%clk 01:42:15] [%emt 00:00:12]} 14...d5 {[%clk 01:35:30] [%emt 00:03:18]} 
15.Qc2 {[%clk 01:42:26] [%emt 00:00:20]} 15...Qd7 {[%clk 01:31:31] [%emt
00:04:28]} 16.b5 {[%clk 01:42:16] [%emt 00:00:41]} 16...Ne7 {[%clk 01:27:05]
[%emt 00:04:54]} 17.c4 {[%clk 01:42:34] [%emt 00:00:14]} 17...d4 {[%clk
01:25:58] [%emt 00:01:36]} 18.Nd5 {[%clk 01:42:56] [%emt 00:00:10]} 18...Ng6 
{[%clk 01:24:50] [%emt 00:01:36]} 19.g3 {[%clk 01:42:43] [%emt 00:00:44]} 
19...Nxd5 {[%clk 01:18:32] [%emt 00:06:47]} 20.exd5 {[%clk 01:42:40] [%emt
00:00:34]} 20...Re7 {[%clk 01:17:08] [%emt 00:01:53]} 21.Nd2 {[%clk 01:42:58]
[%emt 00:00:14]} 21...f5 {[%clk 01:09:36] [%emt 00:08:01]} 22.Qd1 {[%clk
01:42:57] [%emt 00:00:32]} 22...Qd6 {[%clk 01:00:54] [%emt 00:09:11]} 23.Qh5 
{[%clk 01:32:55] [%emt 00:10:33]} 23...Qf6 {[%clk 01:00:35] [%emt 00:00:48]} 
24.bxa6 {[%clk 01:01:15] [%emt 00:32:11]} 24...Rxa6 {[%clk 00:56:55] [%emt
00:04:09]} 25.a5 {[%clk 01:00:27] [%emt 00:01:19]} 25...Rf7 {[%clk 00:39:29]
[%emt 00:17:56]} 26.Kh1 {[%clk 00:45:43] [%emt 00:15:14]} 26...c6 {[%clk
00:34:03] [%emt 00:05:55]} 27.dxc6 {[%clk 00:42:51] [%emt 00:03:22]} 27...Qxc6+ 
{[%clk 00:33:36] [%emt 00:00:57]} 28.Kg1 {[%clk 00:43:06] [%emt 00:00:16]} 
28...Qc7 {[%clk 00:30:34] [%emt 00:03:30]} 29.Reb1 {[%clk 00:40:36] [%emt
00:03:01]} 29...Rff6 {[%clk 00:26:23] [%emt 00:04:41]} 30.Qd1 {[%clk 00:32:43]
[%emt 00:08:23]} 30...Nf8 {[%clk 00:17:13] [%emt 00:09:40]} 31.Rb5 {[%clk
00:29:48] [%emt 00:03:25]} 31...b6 {[%clk 00:16:58] [%emt 00:00:45]} 32.axb6 
{[%clk 00:24:16] [%emt 00:06:03]} 32...Raxb6 {[%clk 00:17:21] [%emt 00:00:06]} 
33.Rab1 {[%clk 00:24:16] [%emt 00:00:31]} 33...Nd7 {[%clk 00:15:00] [%emt
00:02:51]} 34.Qf3 {[%clk 00:20:25] [%emt 00:04:21]} 34...Kh7 {[%clk 00:14:36]
[%emt 00:00:53]} 35.Rxb6 {[%clk 00:19:05] [%emt 00:01:51]} 35...Nxb6 {[%clk
00:15:02] [%emt 00:00:04]} 36.Rb5 {[%clk 00:18:36] [%emt 00:00:59]} 36...e4 
{[%clk 00:11:38] [%emt 00:03:54]} 37.Qe2 {[%clk 00:16:29] [%emt 00:02:37]} 
37...Na4 {[%clk 00:09:03] [%emt 00:03:04]} 38.Nxe4 {[%clk 00:15:00] [%emt
00:02:00]} 38...fxe4 {[%clk 00:09:20] [%emt 00:00:13]} 39.Qxe4+ {[%clk 00:15:24]
[%emt 00:00:06]} 39...Rg6 {[%clk 00:09:45] [%emt 00:00:04]} 40.Qxd4 {[%clk
00:15:19] [%emt 00:00:35]} 1/2-1/2

[Event "FIDE Grand Swiss 2023"]
[Site "Villa Marina, Douglas, Isle of Man"]
[Date "2023.10.28"]
[Round "4.50"]
[White "Parligras, Mircea-Emilian"]
[Black "Gledura, Benjamin"]
[Result "1/2-1/2"]
[WhiteElo "2561"]
[BlackElo "2633"]
[EventDate "2023.10.25"]
[ECO "D37"]
[PlyCount "74"]
[BlackFideId "712779"]
[TimeControl "40/100 + 20/50 + 15 + 30s/move"]
[WhiteFideId "1204297"]

1.d4 {[%clk 01:40:56] [%emt 00:00:02]} 1...d5 {[%clk 01:40:48] [%emt 00:00:13]} 
2.c4 {[%clk 01:41:21] [%emt 00:00:06]} 2...e6 {[%clk 01:41:08] [%emt 00:00:10]} 
3.Nf3 {[%clk 01:41:41] [%emt 00:00:10]} 3...Nf6 {[%clk 01:41:27] [%emt
00:00:11]} 4.Nc3 {[%clk 01:42:05] [%emt 00:00:06]} 4...Be7 {[%clk 01:41:25]
[%emt 00:00:33]} 5.Bf4 {[%clk 01:41:58] [%emt 00:00:36]} 5...O-O {[%clk
01:41:30] [%emt 00:00:26]} 6.e3 {[%clk 01:41:53] [%emt 00:00:35]} 6...b6 {[%clk
01:41:38] [%emt 00:00:22]} 7.cxd5 {[%clk 01:37:26] [%emt 00:04:57]} 7...Nxd5 
{[%clk 01:41:38] [%emt 00:00:30]} 8.Nxd5 {[%clk 01:37:51] [%emt 00:00:05]} 
8...Qxd5 {[%clk 01:41:27] [%emt 00:00:41]} 9.a3 {[%clk 01:35:53] [%emt
00:02:28]} 9...Bd6 {[%clk 01:40:08] [%emt 00:01:48]} 10.Bxd6 {[%clk 01:35:18]
[%emt 00:01:06]} 10...cxd6 {[%clk 01:39:27] [%emt 00:01:11]} 11.Bd3 {[%clk
01:32:26] [%emt 00:03:22]} 11...Ba6 {[%clk 01:37:31] [%emt 00:02:26]} 12.O-O 
{[%clk 01:31:37] [%emt 00:01:19]} 12...Bxd3 {[%clk 01:23:21] [%emt 00:14:41]} 
13.Qxd3 {[%clk 01:31:56] [%emt 00:00:11]} 13...Nd7 {[%clk 01:23:28] [%emt
00:00:22]} 14.Qa6 {[%clk 01:15:40] [%emt 00:16:46]} 14...Nb8 {[%clk 01:17:22]
[%emt 00:06:37]} 15.Qe2 {[%clk 01:09:16] [%emt 00:06:54]} 15...Nd7 {[%clk
01:14:52] [%emt 00:03:00]} 16.Rfc1 {[%clk 01:04:33] [%emt 00:05:13]} 16...Qb7 
{[%clk 01:12:45] [%emt 00:02:37]} 17.Rc2 {[%clk 01:03:07] [%emt 00:01:56]} 
17...Rfc8 {[%clk 01:12:50] [%emt 00:00:26]} 18.Rac1 {[%clk 01:03:27] [%emt
00:00:09]} 18...Nf6 {[%clk 01:12:18] [%emt 00:01:02]} 19.h3 {[%clk 01:03:05]
[%emt 00:00:51]} 19...Nd5 {[%clk 01:08:00] [%emt 00:04:49]} 20.Qd3 {[%clk
00:53:03] [%emt 00:10:32]} 20...h6 {[%clk 01:06:56] [%emt 00:01:34]} 21.Nd2 
{[%clk 00:50:48] [%emt 00:02:45]} 21...Ne7 {[%clk 01:06:33] [%emt 00:00:54]} 
22.b4 {[%clk 00:45:28] [%emt 00:05:50]} 22...Rxc2 {[%clk 01:04:11] [%emt
00:02:52]} 23.Rxc2 {[%clk 00:45:51] [%emt 00:00:07]} 23...b5 {[%clk 01:01:56]
[%emt 00:02:45]} 24.Nb3 {[%clk 00:41:07] [%emt 00:05:14]} 24...a6 {[%clk
01:00:12] [%emt 00:02:15]} 25.Na5 {[%clk 00:38:43] [%emt 00:02:54]} 25...Qd7 
{[%clk 00:59:34] [%emt 00:01:07]} 26.e4 {[%clk 00:37:02] [%emt 00:02:11]} 
26...Rc8 {[%clk 00:59:51] [%emt 00:00:13]} 27.Rc3 {[%clk 00:36:47] [%emt
00:00:44]} 27...Kf8 {[%clk 00:54:45] [%emt 00:05:37]} 28.Kf1 {[%clk 00:35:10]
[%emt 00:02:07]} 28...Rxc3 {[%clk 00:51:05] [%emt 00:04:11]} 29.Qxc3 {[%clk
00:35:33] [%emt 00:00:06]} 29...Qc8 {[%clk 00:51:28] [%emt 00:00:07]} 30.Qxc8+ 
{[%clk 00:33:01] [%emt 00:03:02]} 30...Nxc8 {[%clk 00:51:50] [%emt 00:00:08]} 
31.Ke2 {[%clk 00:30:25] [%emt 00:03:06]} 31...Nb6 {[%clk 00:50:33] [%emt
00:01:47]} 32.Kd3 {[%clk 00:28:51] [%emt 00:02:04]} 32...Ke7 {[%clk 00:48:42]
[%emt 00:02:21]} 33.h4 {[%clk 00:24:48] [%emt 00:04:33]} 33...g5 {[%clk
00:45:14] [%emt 00:03:58]} 34.hxg5 {[%clk 00:24:35] [%emt 00:00:43]} 34...hxg5 
{[%clk 00:45:37] [%emt 00:00:07]} 35.g4 {[%clk 00:24:08] [%emt 00:00:56]} 
35...Kd7 {[%clk 00:42:57] [%emt 00:03:11]} 36.f3 {[%clk 00:20:55] [%emt
00:03:43]} 36...Kc7 {[%clk 00:40:17] [%emt 00:03:11]} 37.Kc3 {[%clk 00:17:39]
[%emt 00:03:45]} 37...Na4+ {[%clk 00:38:09] [%emt 00:02:38]} 1/2-1/2